[Event "*** Titled Tuesday Blitz"]
[Site "Chess.com"]
[Date "2019.06.04"]
[Round "3"]
[White "fastestmindalive"]
[Black "KNVB"]
[Result "0-1"]
[WhiteElo "2800"]
[BlackElo "2713"]
[TimeControl "180+2"]
[EndTime "13:42:45 PDT"]
[Termination "KNVB won by resignation"]

1. e4 {[%clk 0:03:01.9]} 1... c5 {[%clk 0:02:58.7]} 2. Nc3 {[%clk 0:03:01.5]}
2... e6 {[%clk 0:02:59.8]} 3. Nf3 {[%clk 0:03:02.2]} 3... Nc6 {[%clk 0:02:59.7]}
4. d4 {[%clk 0:03:03.3]} 4... cxd4 {[%clk 0:03:01.6]} 5. Nxd4 {[%clk 0:03:05.2]}
5... Qc7 {[%clk 0:03:02.8]} 6. g3 {[%clk 0:03:06.2]} 6... a6 {[%clk 0:03:01]} 7.
Bg2 {[%clk 0:03:06.9]} 7... Nf6 {[%clk 0:03:01.2]} 8. O-O {[%clk 0:03:07.1]}
8... Nxd4 {[%clk 0:03:02.1]} 9. Qxd4 {[%clk 0:03:08.1]} 9... Bc5 {[%clk
0:03:03.7]} 10. Bf4 {[%clk 0:03:09.5]} 10... d6 {[%clk 0:03:04.6]} 11. Qd2
{[%clk 0:03:11.1]} 11... h6 {[%clk 0:03:01]} 12. Rad1 {[%clk 0:03:07.7]} 12...
e5 {[%clk 0:03:01.1]} 13. Be3 {[%clk 0:03:08.7]} 13... Bg4 {[%clk 0:02:03.2]}
14. Bxc5 {[%clk 0:03:04.4]} 14... dxc5 {[%clk 0:02:02.5]} 15. Qd6 {[%clk
0:03:05.7]} 15... Qxd6 {[%clk 0:02:03.7]} 16. Rxd6 {[%clk 0:03:07.6]} 16... Nd7
{[%clk 0:02:05.4]} 17. h3 {[%clk 0:02:02.3]} 17... Be6 {[%clk 0:02:03]} 18. f4
{[%clk 0:02:03.4]} 18... O-O-O {[%clk 0:01:32.2]} 19. f5 {[%clk 0:01:35.1]}
19... Bc4 {[%clk 0:01:30.3]} 20. Rfd1 {[%clk 0:01:35.9]} 20... f6 {[%clk
0:01:13.8]} 21. Bf1 {[%clk 0:00:34.7]} 21... Bf7 {[%clk 0:01:06.5]} 22. Na4
{[%clk 0:00:35.8]} 22... Kc7 {[%clk 0:00:51.1]} 23. b3 {[%clk 0:00:31.1]} 23...
b5 {[%clk 0:00:46.1]} 24. Nc3 {[%clk 0:00:09.1]} 24... Nb6 {[%clk 0:00:20.7]}
25. Rxd8 {[%clk 0:00:10.2]} 25... Rxd8 {[%clk 0:00:22.6]} 26. Rxd8 {[%clk
0:00:11.8]} 26... Kxd8 {[%clk 0:00:24.5]} 27. Kf2 {[%clk 0:00:13.7]} 27... Kc7
{[%clk 0:00:24.2]} 28. Ke3 {[%clk 0:00:15.1]} 28... b4 {[%clk 0:00:16.6]} 29.
Nd1 {[%clk 0:00:13.3]} 29... c4 {[%clk 0:00:13.5]} 30. Nb2 {[%clk 0:00:13.1]}
30... c3 {[%clk 0:00:11.6]} 31. Nd3 {[%clk 0:00:09.4]} 31... a5 {[%clk
0:00:13.1]} 32. g4 {[%clk 0:00:07.6]} 32... Kc6 {[%clk 0:00:11.8]} 33. h4 {[%clk
0:00:08.6]} 33... Nd7 {[%clk 0:00:12.5]} 34. Nc1 {[%clk 0:00:08.6]} 34... Nc5
{[%clk 0:00:11.7]} 35. Be2 {[%clk 0:00:09.9]} 35... a4 {[%clk 0:00:11.2]} 36.
Bd3 {[%clk 0:00:09.7]} 36... a3 {[%clk 0:00:09.4]} 37. Be2 {[%clk 0:00:10.4]}
37... Kb6 {[%clk 0:00:07.9]} 38. Bd1 {[%clk 0:00:11.4]} 38... Be8 {[%clk
0:00:07.1]} 39. Ne2 {[%clk 0:00:11.7]} 39... Bb5 {[%clk 0:00:06.3]} 40. Ng3
{[%clk 0:00:12.5]} 40... Be8 {[%clk 0:00:07.4]} 41. Nh1 {[%clk 0:00:08.2]} 41...
Nb7 {[%clk 0:00:07.2]} 42. Nf2 {[%clk 0:00:09]} 42... Nc5 {[%clk 0:00:07.7]} 43.
g5 {[%clk 0:00:07.8]} 43... hxg5 {[%clk 0:00:06.9]} 44. hxg5 {[%clk 0:00:09.7]}
44... fxg5 {[%clk 0:00:03.2]} 45. Nh3 {[%clk 0:00:10.8]} 45... g6 {[%clk
0:00:04.4]} 46. Nxg5 {[%clk 0:00:06.3]} 46... Nd7 {[%clk 0:00:03.4]} 47. Bg4
{[%clk 0:00:04.1]} 47... Nf6 {[%clk 0:00:03.8]} 48. Bd1 {[%clk 0:00:05.7]} 48...
Kc5 {[%clk 0:00:04]} 49. fxg6 {[%clk 0:00:05.9]} 49... Bxg6 {[%clk 0:00:04.7]}
50. Nf3 {[%clk 0:00:07.4]} 50... Kd6 {[%clk 0:00:05.4]} 51. Ng5 {[%clk
0:00:08.9]} 51... Nd7 {[%clk 0:00:04.4]} 52. Be2 {[%clk 0:00:09.9]} 52... Nc5
{[%clk 0:00:05.1]} 53. Bd3 {[%clk 0:00:11.3]} 53... Bh5 {[%clk 0:00:04.7]} 54.
Be2 {[%clk 0:00:10.4]} 54... Be8 {[%clk 0:00:03.6]} 55. Bc4 {[%clk 0:00:10.9]}
55... Bh5 {[%clk 0:00:04.2]} 56. Be2 {[%clk 0:00:10.7]} 56... Bg6 {[%clk
0:00:04.9]} 57. Bc4 {[%clk 0:00:11.2]} 57... Be8 {[%clk 0:00:05.5]} 58. Bd5
{[%clk 0:00:11.4]} 58... Ke7 {[%clk 0:00:04.7]} 59. Nf3 {[%clk 0:00:10.8]} 59...
Kf6 {[%clk 0:00:05.1]} 60. Ne1 {[%clk 0:00:12.3]} 60... Bb5 {[%clk 0:00:05.3]}
61. Nf3 {[%clk 0:00:08]} 61... Bf1 {[%clk 0:00:04.7]} 62. Nh2 {[%clk 0:00:08.8]}
62... Bh3 {[%clk 0:00:04]} 63. Nf3 {[%clk 0:00:10]} 63... Bd7 {[%clk 0:00:04.1]}
64. Bc4 {[%clk 0:00:09.5]} 64... Bg4 {[%clk 0:00:04.6]} 65. Ne1 {[%clk
0:00:10.2]} 65... Ke7 {[%clk 0:00:04]} 66. Nd3 {[%clk 0:00:05.2]} 66... Nxd3
{[%clk 0:00:04.7]} 67. Kxd3 {[%clk 0:00:07.1]} 67... Bd1 {[%clk 0:00:03.5]} 68.
Bd5 {[%clk 0:00:07.3]} 68... Kd6 {[%clk 0:00:03]} 69. Kc4 {[%clk 0:00:08.4]}
69... Bxc2 {[%clk 0:00:03.8]} 70. Kxb4 {[%clk 0:00:08.8]} 70... Bb1 {[%clk
0:00:04.7]} 71. Kxa3 {[%clk 0:00:09.8]} 71... Kc5 {[%clk 0:00:04.8]} 72. b4+
{[%clk 0:00:11.1]} 72... Kd4 {[%clk 0:00:06.3]} 73. b5 {[%clk 0:00:12.7]} 73...
Bxe4 {[%clk 0:00:03.3]} 74. Bxe4 {[%clk 0:00:12.9]} 74... Kxe4 {[%clk
0:00:05.2]} 75. b6 {[%clk 0:00:13.7]} 75... Kd3 {[%clk 0:00:06.9]} 76. b7 {[%clk
0:00:14.8]} 76... c2 {[%clk 0:00:08.8]} 77. b8=Q {[%clk 0:00:15.7]} 77... c1=Q+
{[%clk 0:00:10.4]} 78. Ka4 {[%clk 0:00:14.8]} 78... Qc4+ {[%clk 0:00:11.5]} 79.
Ka3 {[%clk 0:00:15]} 79... Qc3+ {[%clk 0:00:11.3]} 80. Ka4 {[%clk 0:00:15.4]}
80... Qc4+ {[%clk 0:00:10.1]} 81. Ka3 {[%clk 0:00:15.1]} 81... e4 {[%clk
0:00:09.8]} 82. Qd6+ {[%clk 0:00:13.8]} 82... Qd4 {[%clk 0:00:08.8]} 83. Qg6
{[%clk 0:00:15.2]} 83... Kc3 {[%clk 0:00:08]} 84. Qc6+ {[%clk 0:00:15.8]} 84...
Qc4 {[%clk 0:00:08.4]} 85. Qf6+ {[%clk 0:00:16.2]} 85... Kd3 {[%clk 0:00:08.2]}
86. Qf1+ {[%clk 0:00:16.9]} 86... Kd4 {[%clk 0:00:08.1]} 87. Qf6+ {[%clk
0:00:16.7]} 87... Ke3 {[%clk 0:00:07.7]} 88. Qh6+ {[%clk 0:00:15.2]} 88... Kd3
{[%clk 0:00:07.4]} 89. Qg6 {[%clk 0:00:12.2]} 89... Kc2 {[%clk 0:00:03.4]} 90.
Qg2+ {[%clk 0:00:12.5]} 90... Kc3 {[%clk 0:00:05]} 91. Qc2+ {[%clk 0:00:09.5]}
91... Kd4 {[%clk 0:00:05.2]} 92. Qh2 {[%clk 0:00:06.5]} 92... e3 {[%clk
0:00:05]} 93. Qf4+ {[%clk 0:00:06.3]} 93... Kd3 {[%clk 0:00:05.9]} 94. Qg3
{[%clk 0:00:06.2]} 94... Qc3+ {[%clk 0:00:05.8]} 95. Ka4 {[%clk 0:00:07.3]}
95... Qc4+ {[%clk 0:00:06.9]} 96. Ka3 {[%clk 0:00:08]} 96... Qc3+ {[%clk
0:00:07.3]} 97. Ka4 {[%clk 0:00:09.4]} 97... Kd2 {[%clk 0:00:07.7]} 98. Qg5
{[%clk 0:00:10.6]} 98... Kc2 {[%clk 0:00:07.8]} 99. Qg2+ {[%clk 0:00:09.8]}
99... Kd1 {[%clk 0:00:06]} 100. Qh1+ {[%clk 0:00:09.8]} 100... Kd2 {[%clk
0:00:06.9]} 101. Qh6 {[%clk 0:00:09.9]} 101... Qc4+ {[%clk 0:00:06.3]} 102. Ka3
{[%clk 0:00:09.6]} 102... Qc5+ {[%clk 0:00:06.2]} 103. Kb3 {[%clk 0:00:09.3]}
103... Qd5+ {[%clk 0:00:05.9]} 104. Ka3 {[%clk 0:00:09.9]} 104... Qd3+ {[%clk
0:00:06.2]} 105. Ka4 {[%clk 0:00:09]} 105... Kc2 {[%clk 0:00:05.6]} 106. Qc6+
{[%clk 0:00:08.3]} 106... Kb2 {[%clk 0:00:04.4]} 107. Qf6+ {[%clk 0:00:04.8]}
107... Qc3 {[%clk 0:00:03.9]} 108. Qf3 {[%clk 0:00:04]} 108... Qa3+ {[%clk
0:00:03.4]} 109. Kb5 {[%clk 0:00:05.1]} 109... Qd3+ {[%clk 0:00:04.8]} 110. Kc5
{[%clk 0:00:06.2]} 110... Qc2+ {[%clk 0:00:04.6]} 111. Kd4 {[%clk 0:00:06.5]}
111... Qd2+ {[%clk 0:00:04.6]} 112. Ke4 {[%clk 0:00:07]} 112... e2 {[%clk
0:00:06.3]} 113. Qf6+ {[%clk 0:00:07.4]} 113... Kb1 {[%clk 0:00:04.1]} 114. Qb6+
{[%clk 0:00:07.6]} 114... Kc1 {[%clk 0:00:04.4]} 115. Qc6+ {[%clk 0:00:05.4]}
115... Qc2+ {[%clk 0:00:05]} 116. Kd5 {[%clk 0:00:05.9]} 116... Qxc6+ {[%clk
0:00:04.4]} 117. Kxc6 {[%clk 0:00:07.8]} 117... e1=Q {[%clk 0:00:06.3]} 0-1

[Event "*** Titled Tuesday Blitz"]
[Site "Chess.com"]
[Date "2019.06.04"]
[Round "3"]
[White "DanielMieles1985"]
[Black "Genghis_K"]
[Result "1-0"]
[WhiteElo "2650"]
[BlackElo "2842"]
[TimeControl "180+2"]
[EndTime "13:42:51 PDT"]
[Termination "DanielMieles1985 won by resignation"]

1. c4 {[%clk 0:03:01.9]} 1... e5 {[%clk 0:03:00.4]} 2. Nc3 {[%clk 0:03:02.8]}
2... Bb4 {[%clk 0:03:00.7]} 3. g3 {[%clk 0:03:03]} 3... Bxc3 {[%clk 0:03:01.6]}
4. bxc3 {[%clk 0:03:04.1]} 4... d6 {[%clk 0:03:03.1]} 5. Bg2 {[%clk 0:03:04.6]}
5... Nc6 {[%clk 0:03:04.4]} 6. Rb1 {[%clk 0:03:05.5]} 6... Nge7 {[%clk
0:03:01.7]} 7. e4 {[%clk 0:03:02.2]} 7... O-O {[%clk 0:03:02]} 8. Ne2 {[%clk
0:03:03.1]} 8... f5 {[%clk 0:03:03.5]} 9. O-O {[%clk 0:02:49.8]} 9... fxe4
{[%clk 0:02:59.1]} 10. Bxe4 {[%clk 0:02:50.2]} 10... Bh3 {[%clk 0:02:56.8]} 11.
Bg2 {[%clk 0:02:49.6]} 11... Bxg2 {[%clk 0:02:52.4]} 12. Kxg2 {[%clk 0:02:50.8]}
12... b6 {[%clk 0:02:44.3]} 13. d3 {[%clk 0:02:46.9]} 13... Qd7 {[%clk 0:02:43]}
14. Be3 {[%clk 0:02:46.3]} 14... Rf7 {[%clk 0:02:41.9]} 15. Qd2 {[%clk
0:02:46.8]} 15... Raf8 {[%clk 0:02:43.1]} 16. f4 {[%clk 0:02:45.7]} 16... Qe6
{[%clk 0:02:42.5]} 17. fxe5 {[%clk 0:02:42.6]} 17... Rxf1 {[%clk 0:02:28.4]} 18.
Rxf1 {[%clk 0:02:43]} 18... Rxf1 {[%clk 0:02:29.8]} 19. Kxf1 {[%clk 0:02:43.7]}
19... Qh3+ {[%clk 0:02:31.1]} 20. Ke1 {[%clk 0:02:06.6]} 20... Nxe5 {[%clk
0:02:24.3]} 21. Ng1 {[%clk 0:01:58.8]} 21... Qf5 {[%clk 0:02:22.8]} 22. Ke2
{[%clk 0:01:49.4]} 22... Qh5+ {[%clk 0:01:50.6]} 23. Kf1 {[%clk 0:01:33.4]}
23... Qg6 {[%clk 0:01:39.6]} 24. Ke2 {[%clk 0:01:28.5]} 24... Ng4 {[%clk
0:01:37.9]} 25. h3 {[%clk 0:01:19.9]} 25... Ne5 {[%clk 0:01:35.4]} 26. Bf4
{[%clk 0:01:16.2]} 26... Qh5+ {[%clk 0:01:36.7]} 27. g4 {[%clk 0:01:11.2]} 27...
Qh4 {[%clk 0:01:24.3]} 28. Bxe5 {[%clk 0:00:59.6]} 28... dxe5 {[%clk 0:01:26.2]}
29. Qe3 {[%clk 0:00:55.5]} 29... Ng6 {[%clk 0:01:27.7]} 30. Qe4 {[%clk
0:00:40.7]} 30... Nf4+ {[%clk 0:01:26.9]} 31. Kf3 {[%clk 0:00:36.8]} 31... Qf6
{[%clk 0:01:02.6]} 32. Kg3 {[%clk 0:00:37.3]} 32... Qd6 {[%clk 0:01:01.8]} 33.
d4 {[%clk 0:00:32.7]} 33... Ng6 {[%clk 0:00:52.8]} 34. Kg2 {[%clk 0:00:24.8]}
34... Nf4+ {[%clk 0:00:45.7]} 35. Kg3 {[%clk 0:00:25.7]} 35... Ng6 {[%clk
0:00:45.7]} 36. Kg2 {[%clk 0:00:26.7]} 36... h6 {[%clk 0:00:38.1]} 37. Nf3
{[%clk 0:00:20.4]} 37... exd4 {[%clk 0:00:39.4]} 38. cxd4 {[%clk 0:00:18.8]}
38... Nf4+ {[%clk 0:00:41]} 39. Kf1 {[%clk 0:00:17.9]} 39... Nxh3 {[%clk
0:00:38]} 40. d5 {[%clk 0:00:10.9]} 40... Qf6 {[%clk 0:00:35]} 41. Kg2 {[%clk
0:00:09.4]} 41... Nf4+ {[%clk 0:00:33.8]} 42. Kg3 {[%clk 0:00:10.8]} 42... Ng6
{[%clk 0:00:34.4]} 43. Qe8+ {[%clk 0:00:09.9]} 43... Kh7 {[%clk 0:00:35.7]} 44.
Qe4 {[%clk 0:00:11.6]} 44... Qd6+ {[%clk 0:00:36]} 45. Kg2 {[%clk 0:00:12.4]}
45... Kg8 {[%clk 0:00:37.4]} 46. Qe8+ {[%clk 0:00:13.3]} 46... Kh7 {[%clk
0:00:30.8]} 47. Qe4 {[%clk 0:00:14]} 47... Qf4 {[%clk 0:00:32.3]} 48. Qxf4
{[%clk 0:00:11]} 48... Nxf4+ {[%clk 0:00:34.2]} 49. Kg3 {[%clk 0:00:12.5]} 49...
Nd3 {[%clk 0:00:35.6]} 50. Nd4 {[%clk 0:00:12.2]} 50... Ne5 {[%clk 0:00:32.7]}
51. Ne6 {[%clk 0:00:12.9]} 51... Nxc4 {[%clk 0:00:33.5]} 52. Nxc7 {[%clk
0:00:14]} 52... Kg8 {[%clk 0:00:33.5]} 53. Kf4 {[%clk 0:00:14.5]} 53... Kf7
{[%clk 0:00:34.2]} 54. Ke4 {[%clk 0:00:14.2]} 54... Ke7 {[%clk 0:00:34]} 55. Kd4
{[%clk 0:00:14]} 55... Nd6 {[%clk 0:00:33]} 56. Ne6 {[%clk 0:00:14.9]} 56... g6
{[%clk 0:00:34.2]} 57. Nf4 {[%clk 0:00:16.1]} 57... Kf6 {[%clk 0:00:34.9]} 58.
a4 {[%clk 0:00:16.2]} 58... Kg5 {[%clk 0:00:34.7]} 59. Nd3 {[%clk 0:00:12.7]}
59... Kxg4 {[%clk 0:00:35]} 60. Ke5 {[%clk 0:00:14.1]} 60... Nb7 {[%clk
0:00:33.5]} 61. Ke6 {[%clk 0:00:10.7]} 61... h5 {[%clk 0:00:31.1]} 62. Kd7
{[%clk 0:00:11.5]} 62... h4 {[%clk 0:00:31.9]} 63. Kc7 {[%clk 0:00:12.8]} 63...
Nc5 {[%clk 0:00:26.6]} 64. Nxc5 {[%clk 0:00:13.4]} 64... bxc5 {[%clk 0:00:28.5]}
65. d6 {[%clk 0:00:14.8]} 65... h3 {[%clk 0:00:29.9]} 66. d7 {[%clk 0:00:16.2]}
66... h2 {[%clk 0:00:31.5]} 67. d8=Q {[%clk 0:00:16.7]} 67... h1=Q {[%clk
0:00:32.8]} 68. Qd7+ {[%clk 0:00:14.3]} 68... Kg5 {[%clk 0:00:28.9]} 69. Qe7+
{[%clk 0:00:12.6]} 69... Kg4 {[%clk 0:00:17.4]} 70. Qe6+ {[%clk 0:00:13.6]}
70... Kf4 {[%clk 0:00:17.1]} 71. Qf6+ {[%clk 0:00:14]} 71... Ke3 {[%clk
0:00:17.1]} 72. Qc3+ {[%clk 0:00:14.5]} 72... Ke2 {[%clk 0:00:07.7]} 73. Qc2+
{[%clk 0:00:15.4]} 73... Kf1 {[%clk 0:00:07.2]} 74. Qc4+ {[%clk 0:00:13.9]}
74... Kg1 {[%clk 0:00:07.3]} 75. Qxc5+ {[%clk 0:00:14.8]} 75... Kh2 {[%clk
0:00:08.7]} 76. Qe5+ {[%clk 0:00:15]} 76... Kh3 {[%clk 0:00:09.4]} 77. Qe6+
{[%clk 0:00:16.3]} 77... Kh2 {[%clk 0:00:09.3]} 78. Qxg6 {[%clk 0:00:17]} 78...
Qc1+ {[%clk 0:00:08.2]} 79. Qc6 {[%clk 0:00:16.6]} 79... Qa3 {[%clk 0:00:04.7]}
80. Kb7 {[%clk 0:00:16]} 80... a5 {[%clk 0:00:05.2]} 81. Ka6 {[%clk 0:00:15.7]}
81... Qb4 {[%clk 0:00:03.8]} 82. Qc7+ {[%clk 0:00:15.5]} 82... Kg2 {[%clk
0:00:03.8]} 83. Qb7+ {[%clk 0:00:13.5]} 83... Kf2 {[%clk 0:00:03.8]} 84. Qb6+
{[%clk 0:00:11.7]} 84... Kf3 {[%clk 0:00:03.8]} 85. Qxa5 {[%clk 0:00:12]} 85...
Qc4+ {[%clk 0:00:05.4]} 86. Qb5 {[%clk 0:00:13.1]} 86... Qa2 {[%clk 0:00:05.5]}
87. a5 {[%clk 0:00:12.5]} 87... Kg3 {[%clk 0:00:07.2]} 88. Qc6 {[%clk 0:00:10]}
88... Qe2+ {[%clk 0:00:07.6]} 89. Kb6 {[%clk 0:00:10.5]} 89... Qe3+ {[%clk
0:00:08.3]} 90. Qc5 {[%clk 0:00:11.6]} 90... Qb3+ {[%clk 0:00:09.1]} 91. Kc6
{[%clk 0:00:11.7]} 91... Qf3+ {[%clk 0:00:06.7]} 92. Qd5 {[%clk 0:00:12.7]}
92... Qc3+ {[%clk 0:00:08.2]} 93. Qc5 {[%clk 0:00:13.3]} 93... Qf3+ {[%clk
0:00:08.8]} 94. Kb6 {[%clk 0:00:14.5]} 94... Qb3+ {[%clk 0:00:09.3]} 95. Ka7
{[%clk 0:00:15.7]} 95... Qf7+ {[%clk 0:00:09.9]} 96. Kb8 {[%clk 0:00:16]} 96...
Qe8+ {[%clk 0:00:08.7]} 97. Kb7 {[%clk 0:00:15]} 97... Qe4+ {[%clk 0:00:08.5]}
98. Ka7 {[%clk 0:00:13.3]} 98... Kh2 {[%clk 0:00:06.9]} 99. a6 {[%clk 0:00:13]}
99... Qe6 {[%clk 0:00:06]} 100. Qc7+ {[%clk 0:00:11.2]} 100... Kg1 {[%clk
0:00:05.4]} 101. Kb7 {[%clk 0:00:12.1]} 101... Qd5+ {[%clk 0:00:05.9]} 102. Qc6
{[%clk 0:00:13.2]} 102... Qf7+ {[%clk 0:00:06.9]} 103. Kb6 {[%clk 0:00:14.3]}
103... Qb3+ {[%clk 0:00:07.4]} 104. Qb5 {[%clk 0:00:15.3]} 104... Qe6+ {[%clk
0:00:08.3]} 105. Ka5 {[%clk 0:00:15.1]} 105... Qa2+ {[%clk 0:00:09]} 106. Kb6
{[%clk 0:00:15.6]} 106... Qe6+ {[%clk 0:00:10.2]} 107. Qc6 {[%clk 0:00:17]}
107... Qb3+ {[%clk 0:00:11]} 108. Kc7 {[%clk 0:00:17.9]} 108... Qf7+ {[%clk
0:00:12]} 109. Kb8 {[%clk 0:00:19.2]} 109... Qf8+ {[%clk 0:00:10.4]} 110. Kb7
{[%clk 0:00:18.9]} 110... Qf7+ {[%clk 0:00:10.3]} 111. Qc7 {[%clk 0:00:19]}
111... Qf3+ {[%clk 0:00:11.5]} 112. Kb8 {[%clk 0:00:19.5]} 112... Qf8+ {[%clk
0:00:10.4]} 113. Ka7 {[%clk 0:00:20.3]} 113... Kh1 {[%clk 0:00:09.4]} 114. Qc6+
{[%clk 0:00:20.2]} 114... Kg1 {[%clk 0:00:07.8]} 115. Qb6+ {[%clk 0:00:20.7]}
115... Kh1 {[%clk 0:00:08.4]} 116. Qb7+ {[%clk 0:00:21.9]} 116... Kg1 {[%clk
0:00:09.1]} 117. Qc7 {[%clk 0:00:22.4]} 117... Kh1 {[%clk 0:00:09]} 118. Kb7
{[%clk 0:00:23.3]} 118... Qb4+ {[%clk 0:00:09.4]} 119. Ka8 {[%clk 0:00:23.1]}
119... Qf8+ {[%clk 0:00:10.1]} 120. Qb8 {[%clk 0:00:23.9]} 120... Qe7 {[%clk
0:00:06.2]} 121. Qb7+ {[%clk 0:00:22.8]} 1-0